Workbook

Sheet Monthly Budget Summary
B1: COMPANY NAME | E1: DATE
B2: MONTHLY BUDGET
B4: BUDGET TOTALS | C4: ESTIMATED | D4: ACTUAL | E4: DIFFERENCE
B5: Income | C5: =Income[[#Totals],[ESTIMATED]] -> 63,300.00 | D5: =Income[[#Totals],[ACTUAL]] -> 57,450.00 | E5: =IF('Monthly Budget Summary'!$B5="Income",'Monthly Budget Summary'!$D5-'Monthly Budget Summary'!$C5,'Monthly Budget Summary'!$C5-'Monthly Budget Summary'!$D5) -> -5,850.00
B6: Personnel Expenses | C6: =PersonnelExpenses[[#Totals],[ESTIMATED]] -> 18,500.00 | D6: =PersonnelExpenses[[#Totals],[ACTUAL]] -> 14,100.00 | E6: =IF('Monthly Budget Summary'!$B6="Income",'Monthly Budget Summary'!$D6-'Monthly Budget Summary'!$C6,'Monthly Budget Summary'!$C6-'Monthly Budget Summary'!$D6) -> 4,400.00
B7: Operating Expenses | C7: =OperatingExpenses[[#Totals],[ESTIMATED]] -> 36,000.00 | D7: =OperatingExpenses[[#Totals],[ACTUAL]] -> 35,530.00 | E7: =IF('Monthly Budget Summary'!$B7="Income",'Monthly Budget Summary'!$D7-'Monthly Budget Summary'!$C7,'Monthly Budget Summary'!$C7-'Monthly Budget Summary'!$D7) -> 470.00
B8: Balance (Income minus Expenses) | C8: =C5-C6-C7 -> 8,800.00 | D8: =D5-D6-D7 -> 7,820.00 | E8: =SUBTOTAL(109,Table2[DIFFERENCE]) -> -980.00
B10: WHAT ARE MY TOP 5 HIGHEST ACTUAL OPERATING EXPENSES?
B11: ACTUAL EXPENSES | C11: AMOUNT | D11: % OF EXPENSES | E11: 15% REDUCTION
B12: =INDEX(OperatingExpenses[],MATCH(Top5Expenses[[#This Row],[AMOUNT]],OperatingExpenses[TOP 5 AMOUNT],0),1) -> Maintenance and repairs | C12: =LARGE(OperatingExpenses[TOP 5 AMOUNT],1) -> 4600.000014 | D12: =Top5Expenses[[#This Row],[AMOUNT]]/$D$7 -> 12.9% | E12: =Top5Expenses[[#This Row],[AMOUNT]]*0.15 -> 690.0000021
B13: =INDEX(OperatingExpenses[],MATCH(Top5Expenses[[#This Row],[AMOUNT]],OperatingExpenses[TOP 5 AMOUNT],0),1) -> Supplies | C13: =LARGE(OperatingExpenses[TOP 5 AMOUNT],2) -> 4500.00002 | D13: =Top5Expenses[[#This Row],[AMOUNT]]/$D$7 -> 12.7% | E13: =Top5Expenses[[#This Row],[AMOUNT]]*0.15 -> 675.000003
B14: =INDEX(OperatingExpenses[],MATCH(Top5Expenses[[#This Row],[AMOUNT]],OperatingExpenses[TOP 5 AMOUNT],0),1) -> Rent or mortgage | C14: =LARGE(OperatingExpenses[TOP 5 AMOUNT],3) -> 4500.000017 | D14: =Top5Expenses[[#This Row],[AMOUNT]]/$D$7 -> 12.7% | E14: =Top5Expenses[[#This Row],[AMOUNT]]*0.15 -> 675.0000025
B15: =INDEX(OperatingExpenses[],MATCH(Top5Expenses[[#This Row],[AMOUNT]],OperatingExpenses[TOP 5 AMOUNT],0),1) -> Taxes | C15: =LARGE(OperatingExpenses[TOP 5 AMOUNT],4) -> 3200.000021 | D15: =Top5Expenses[[#This Row],[AMOUNT]]/$D$7 -> 9.0% | E15: =Top5Expenses[[#This Row],[AMOUNT]]*0.15 -> 480.0000031
B16: =INDEX(OperatingExpenses[],MATCH(Top5Expenses[[#This Row],[AMOUNT]],OperatingExpenses[TOP 5 AMOUNT],0),1) -> Advertising | C16: =LARGE(OperatingExpenses[TOP 5 AMOUNT],5) -> 2500.000005 | D16: =Top5Expenses[[#This Row],[AMOUNT]]/$D$7 -> 7.0% | E16: =Top5Expenses[[#This Row],[AMOUNT]]*0.15 -> 375.0000007
B17: Total | C17: =SUBTOTAL(109,Top5Expenses[AMOUNT]) -> 19,300.00 | D17: =SUBTOTAL(109,Top5Expenses[% OF EXPENSES]) -> 54.3% | E17: =SUBTOTAL(109,Top5Expenses[15% REDUCTION]) -> 2,895.00

Sheet Income
B1: COMPANY NAME | E1: DATE | F1: DATE
B2: MONTHLY BUDGET
B4: INCOME | C4: ESTIMATED | D4: ACTUAL | E4: TOP 5 AMOUNT | F4: DIFFERENCE
B5: Net sales | C5: 60000 | D5: 54000 | E5: =Income[[#This Row],[ACTUAL]]+(10^-6)*ROW(Income[[#This Row],[ACTUAL]]) -> 54000.00001 | F5: =Income[[#This Row],[ACTUAL]]-Income[[#This Row],[ESTIMATED]] -> -6000
B6: Interest income | C6: 3000 | D6: 3000 | E6: =Income[[#This Row],[ACTUAL]]+(10^-6)*ROW(Income[[#This Row],[ACTUAL]]) -> 3000.000006 | F6: =Income[[#This Row],[ACTUAL]]-Income[[#This Row],[ESTIMATED]] -> 0
B7: Asset sales (gain/loss) | C7: 300 | D7: 450 | E7: =Income[[#This Row],[ACTUAL]]+(10^-6)*ROW(Income[[#This Row],[ACTUAL]]) -> 450.000007 | F7: =Income[[#This Row],[ACTUAL]]-Income[[#This Row],[ESTIMATED]] -> 150
B8: Total Income | C8: =SUBTOTAL(109,Income[ESTIMATED]) -> 63300 | D8: =SUBTOTAL(109,Income[ACTUAL]) -> 57450 | F8: =SUBTOTAL(109,Income[DIFFERENCE]) -> -5850

Sheet Personnel Expenses
B1: COMPANY NAME | E1: DATE | F1: DATE
B2: MONTHLY BUDGET
B4: PERSONNEL EXPENSES | C4: ESTIMATED | D4: ACTUAL | E4: TOP 5 AMOUNT | F4: DIFFERENCE
B5: Wages | C5: 9500 | D5: 9600 | E5: =PersonnelExpenses[[#This Row],[ACTUAL]]+(10^-6)*ROW(PersonnelExpenses[[#This Row],[ACTUAL]]) -> 9600.000005 | F5: =PersonnelExpenses[[#This Row],[ESTIMATED]]-PersonnelExpenses[[#This Row],[ACTUAL]] -> -100
B6: Employee benefits | C6: 4000 | D6: 0 | E6: =PersonnelExpenses[[#This Row],[ACTUAL]]+(10^-6)*ROW(PersonnelExpenses[[#This Row],[ACTUAL]]) -> 6e-06 | F6: =PersonnelExpenses[[#This Row],[ESTIMATED]]-PersonnelExpenses[[#This Row],[ACTUAL]] -> 4000
B7: Commission | C7: 5000 | D7: 4500 | E7: =PersonnelExpenses[[#This Row],[ACTUAL]]+(10^-6)*ROW(PersonnelExpenses[[#This Row],[ACTUAL]]) -> 4500.000007 | F7: =PersonnelExpenses[[#This Row],[ESTIMATED]]-PersonnelExpenses[[#This Row],[ACTUAL]] -> 500
B8: Total Personnel Expenses | C8: =SUBTOTAL(109,PersonnelExpenses[ESTIMATED]) -> 18500 | D8: =SUBTOTAL(109,PersonnelExpenses[ACTUAL]) -> 14100 | F8: =SUBTOTAL(109,PersonnelExpenses[DIFFERENCE]) -> 4400

Sheet Operating Expenses
B1: COMPANY NAME | E1: DATE | F1: DATE
B2: MONTHLY BUDGET
B4: OPERATING EXPENSES | C4: ESTIMATED | D4: ACTUAL | E4: TOP 5 AMOUNT | F4: DIFFERENCE
B5: Advertising | C5: 3000 | D5: 2500 | E5: =OperatingExpenses[[#This Row],[ACTUAL]]+(10^-6)*ROW(OperatingExpenses[[#This Row],[ACTUAL]]) -> 2500.000005 | F5: =OperatingExpenses[[#This Row],[ESTIMATED]]-OperatingExpenses[[#This Row],[ACTUAL]] -> 500
B6: Bad debts | C6: 2000 | D6: 2000 | E6: =OperatingExpenses[[#This Row],[ACTUAL]]+(10^-6)*ROW(OperatingExpenses[[#This Row],[ACTUAL]]) -> 2000.000006 | F6: =OperatingExpenses[[#This Row],[ESTIMATED]]-OperatingExpenses[[#This Row],[ACTUAL]] -> 0
B7: Cash discounts | C7: 1500 | D7: 2175 | E7: =OperatingExpenses[[#This Row],[ACTUAL]]+(10^-6)*ROW(OperatingExpenses[[#This Row],[ACTUAL]]) -> 2175.000007 | F7: =OperatingExpenses[[#This Row],[ESTIMATED]]-OperatingExpenses[[#This Row],[ACTUAL]] -> -675
B8: Delivery costs | C8: 2000 | D8: 1500 | E8: =OperatingExpenses[[#This Row],[ACTUAL]]+(10^-6)*ROW(OperatingExpenses[[#This Row],[ACTUAL]]) -> 1500.000008 | F8: =OperatingExpenses[[#This Row],[ESTIMATED]]-OperatingExpenses[[#This Row],[ACTUAL]] -> 500
B9: Depreciation | C9: 1000 | D9: 1000 | E9: =OperatingExpenses[[#This Row],[ACTUAL]]+(10^-6)*ROW(OperatingExpenses[[#This Row],[ACTUAL]]) -> 1000.000009 | F9: =OperatingExpenses[[#This Row],[ESTIMATED]]-OperatingExpenses[[#This Row],[ACTUAL]] -> 0
B10: Dues and subscriptions | C10: 500 | D10: 525 | E10: =OperatingExpenses[[#This Row],[ACTUAL]]+(10^-6)*ROW(OperatingExpenses[[#This Row],[ACTUAL]]) -> 525.00001 | F10: =OperatingExpenses[[#This Row],[ESTIMATED]]-OperatingExpenses[[#This Row],[ACTUAL]] -> -25
B11: Insurance | C11: 1300 | D11: 1275 | E11: =OperatingExpenses[[#This Row],[ACTUAL]]+(10^-6)*ROW(OperatingExpenses[[#This Row],[ACTUAL]]) -> 1275.000011 | F11: =OperatingExpenses[[#This Row],[ESTIMATED]]-OperatingExpenses[[#This Row],[ACTUAL]] -> 25
B12: Interest | C12: 2000 | D12: 2200 | E12: =OperatingExpenses[[#This Row],[ACTUAL]]+(10^-6)*ROW(OperatingExpenses[[#This Row],[ACTUAL]]) -> 2200.000012 | F12: =OperatingExpenses[[#This Row],[ESTIMATED]]-OperatingExpenses[[#This Row],[ACTUAL]] -> -200
B13: Legal and auditing | C13: 1000 | D13: 800 | E13: =OperatingExpenses[[#This Row],[ACTUAL]]+(10^-6)*ROW(OperatingExpenses[[#This Row],[ACTUAL]]) -> 800.000013 | F13: =OperatingExpenses[[#This Row],[ESTIMATED]]-OperatingExpenses[[#This Row],[ACTUAL]] -> 200
B14: Maintenance and repairs | C14: 4500 | D14: 4600 | E14: =OperatingExpenses[[#This Row],[ACTUAL]]+(10^-6)*ROW(OperatingExpenses[[#This Row],[ACTUAL]]) -> 4600.000014 | F14: =OperatingExpenses[[#This Row],[ESTIMATED]]-OperatingExpenses[[#This Row],[ACTUAL]] -> -100
B15: Office supplies | C15: 800 | D15: 750 | E15: =OperatingExpenses[[#This Row],[ACTUAL]]+(10^-6)*ROW(OperatingExpenses[[#This Row],[ACTUAL]]) -> 750.000015 | F15: =OperatingExpenses[[#This Row],[ESTIMATED]]-OperatingExpenses[[#This Row],[ACTUAL]] -> 50
B16: Postage | C16: 400 | D16: 350 | E16: =OperatingExpenses[[#This Row],[ACTUAL]]+(10^-6)*ROW(OperatingExpenses[[#This Row],[ACTUAL]]) -> 350.000016 | F16: =OperatingExpenses[[#This Row],[ESTIMATED]]-OperatingExpenses[[#This Row],[ACTUAL]] -> 50
B17: Rent or mortgage | C17: 4100 | D17: 4500 | E17: =OperatingExpenses[[#This Row],[ACTUAL]]+(10^-6)*ROW(OperatingExpenses[[#This Row],[ACTUAL]]) -> 4500.000017 | F17: =OperatingExpenses[[#This Row],[ESTIMATED]]-OperatingExpenses[[#This Row],[ACTUAL]] -> -400
B18: Sales expenses | C18: 350 | D18: 400 | E18: =OperatingExpenses[[#This Row],[ACTUAL]]+(10^-6)*ROW(OperatingExpenses[[#This Row],[ACTUAL]]) -> 400.000018 | F18: =OperatingExpenses[[#This Row],[ESTIMATED]]-OperatingExpenses[[#This Row],[ACTUAL]] -> -50
B19: Shipping and storage | C19: 900 | D19: 840 | E19: =OperatingExpenses[[#This Row],[ACTUAL]]+(10^-6)*ROW(OperatingExpenses[[#This Row],[ACTUAL]]) -> 840.000019 | F19: =OperatingExpenses[[#This Row],[ESTIMATED]]-OperatingExpenses[[#This Row],[ACTUAL]] -> 60
B20: Supplies | C20: 5000 | D20: 4500 | E20: =OperatingExpenses[[#This Row],[ACTUAL]]+(10^-6)*ROW(OperatingExpenses[[#This Row],[ACTUAL]]) -> 4500.00002 | F20: =OperatingExpenses[[#This Row],[ESTIMATED]]-OperatingExpenses[[#This Row],[ACTUAL]] -> 500
B21: Taxes | C21: 3000 | D21: 3200 | E21: =OperatingExpenses[[#This Row],[ACTUAL]]+(10^-6)*ROW(OperatingExpenses[[#This Row],[ACTUAL]]) -> 3200.000021 | F21: =OperatingExpenses[[#This Row],[ESTIMATED]]-OperatingExpenses[[#This Row],[ACTUAL]] -> -200
B22: Telephone | C22: 250 | D22: 280 | E22: =OperatingExpenses[[#This Row],[ACTUAL]]+(10^-6)*ROW(OperatingExpenses[[#This Row],[ACTUAL]]) -> 280.000022 | F22: =OperatingExpenses[[#This Row],[ESTIMATED]]-OperatingExpenses[[#This Row],[ACTUAL]] -> -30
B23: Utilities | C23: 1400 | D23: 1385 | E23: =OperatingExpenses[[#This Row],[ACTUAL]]+(10^-6)*ROW(OperatingExpenses[[#This Row],[ACTUAL]]) -> 1385.000023 | F23: =OperatingExpenses[[#This Row],[ESTIMATED]]-OperatingExpenses[[#This Row],[ACTUAL]] -> 15
B24: Other | C24: 1000 | D24: 750 | E24: =OperatingExpenses[[#This Row],[ACTUAL]]+(10^-6)*ROW(OperatingExpenses[[#This Row],[ACTUAL]]) -> 750.000024 | F24: =OperatingExpenses[[#This Row],[ESTIMATED]]-OperatingExpenses[[#This Row],[ACTUAL]] -> 250
B25: Total Operating Expenses | C25: =SUBTOTAL(109,OperatingExpenses[ESTIMATED]) -> 36000 | D25: =SUBTOTAL(109,OperatingExpenses[ACTUAL]) -> 35530 | F25: =SUBTOTAL(109,OperatingExpenses[DIFFERENCE]) -> 470
